bitfinex/quotes_SOLUSD_20230110
["timestamp","ask_amount","ask_price","bid_price","bid_amount"]
[1673319991759,20.0,15.796,15.779,47.55]
[1673319991962,20.0,15.796,15.78,20.0]
[1673319992176,47.49,15.799,15.781,84.54]
[1673319992388,47.47,15.804,15.782,20.0]
[1673319992708,20.0,15.803,15.783,47.54]
[1673319993020,20.0,15.806,15.783,66.54061681]
[1673319993228,47.47,15.805,15.783,47.54]
[1673319993443,20.0,15.804,15.784,56.00061681]
[1673319993653,20.0,15.804,15.786,20.0]
[1673319993840,20.0,15.804,15.787,64.52]
[1673319994051,114.1294,15.808,15.79,27.32]
[1673319994370,114.1294,15.808,15.792,20.0]
[1673319994575,114.1294,15.808,15.793,47.51]
[1673319994793,114.1294,15.808,15.794,17.0]
[1673319995004,114.1294,15.808,15.792,39.00061681]
[1673319995221,114.1294,15.808,15.793,83.51061681]
[1673319995421,114.1294,15.808,15.794,20.0]
[1673319995629,47.46,15.809,15.795,17.0]
[1673319995840,27.24,15.8,15.795,19.00061681]
[1673319996052,47.49,15.799,15.783,158.1135]
[1673319996381,39.00061681,15.799,15.784,20.0]
[1673319996712,19.00061681,15.798,15.784,20.0]
[1673319998269,20.0,15.799,15.784,20.0]
[1673319998586,20.0,15.804,15.785,47.53]
[1673319998796,20.0,15.804,15.786,20.0]
[1673319998990,19.00061681,15.805,15.791,20.0]
[1673319999196,47.46,15.809,15.792,47.51]
[1673319999409,27.58,15.81,15.793,20.0]
[1673319999739,19.00061681,15.808,15.793,128.5836]
[1673320000144,27.58,15.81,15.793,128.5836]
[1673320000354,20.0,15.809,15.793,128.5836]
[1673320000901,20.0,15.809,15.794,17.0]
[1673320001109,20.0,15.809,15.793,128.5836]
[1673320001332,17.0,15.808,15.793,128.5836]
[1673320001545,17.0,15.808,15.793,108.5836]
[1673320001961,19.00061681,15.807,15.793,108.5836]
[1673320004062,19.00061681,15.807,15.794,20.0]
[1673320005124,19.00061681,15.807,15.795,17.0]
[1673320005850,19.00061681,15.807,15.793,108.5836]
[1673320006065,37.0,15.806,15.791,47.51]
[1673320006378,66.47061681,15.805,15.789,47.52]
[1673320006586,20.0,15.804,15.788,67.52]
[1673320006795,39.00061681,15.804,15.788,67.52]
[1673320007007,20.0,15.804,15.788,86.52061681]
[1673320007226,20.0,15.804,15.788,67.52]
[1673320007434,20.0,15.806,15.788,67.52]
[1673320007645,20.0,15.807,15.788,67.52]
[1673320008994,19.00061681,15.806,15.788,67.52]
[1673320009426,47.44,15.814,15.79,27.14]
[1673320009638,66.44061681,15.815,15.791,47.51]
[1673320009851,39.00061681,15.814,15.792,20.0]
[1673320010067,47.45,15.813,15.794,20.0]
[1673320010280,47.45,15.813,15.795,158.1065]
[1673320010496,136.02,15.82,15.796,20.0]
[1673320010497,47.44,15.815,15.796,20.0]
[1673320010675,17.0,15.814,15.796,20.0]
[1673320011018,47.45,15.813,15.796,20.0]
[1673320011424,17.0,15.812,15.796,20.0]
[1673320011619,17.0,15.812,15.795,110.6065]
[1673320011620,47.45,15.811,15.795,110.6065]
[1673320012275,20.0,15.81,15.795,110.6065]
[1673320013106,20.0,15.81,15.796,20.0]
[1673320013630,20.0,15.814,15.796,20.0]
[1673320013836,47.45,15.813,15.796,20.0]
[1673320014048,20.0,15.812,15.796,20.0]
[1673320014469,47.45,15.811,15.795,110.6065]
[1673320014788,20.0,15.81,15.795,110.6065]
[1673320015212,67.45,15.813,15.795,110.6065]
[1673320015435,20.0,15.812,15.795,110.6065]
[1673320016393,67.45,15.813,15.795,110.6065]
[1673320017538,27.24,15.81,15.795,110.6065]
[1673320018183,20.0,15.809,15.795,110.6065]
[1673320018375,20.0,15.809,15.796,47.5]
[1673320020708,20.0,15.811,15.796,47.5]
[1673320021648,20.0,15.812,15.796,47.5]
[1673320021849,103.45061681,15.811,15.792,47.51]
[1673320022061,20.0,15.81,15.793,118.5905]
[1673320022270,40.0,15.81,15.794,47.5]
[1673320022468,40.0,15.81,15.793,118.5905]
[1673320024491,17.0,15.809,15.793,118.5905]
[1673320025239,17.0,15.809,15.791,47.51]
[1673320025546,17.0,15.809,15.781,20.0]
[1673320025547,20.0,15.807,15.789,161.4273]
[1673320025758,47.47,15.806,15.789,113.9073]
[1673320025946,20.0,15.805,15.789,113.9073]
[1673320026364,36.00061681,15.804,15.785,47.53]
[1673320026585,67.48,15.803,15.785,47.53]
[1673320026911,17.0,15.802,15.785,47.53]
[1673320027114,20.0,15.801,15.785,47.53]
[1673320028169,44.18,15.8,15.784,118.9038]
[1673320028376,20.0,15.799,15.784,118.9038]
[1673320028687,17.0,15.798,15.784,118.9038]
[1673320028904,20.0,15.796,15.779,47.55]
[1673320029121,20.0,15.795,15.779,159.8464]
[1673320029626,67.49,15.797,15.779,112.2964]
[1673320029840,37.0,15.796,15.779,112.2964]
[1673320030048,47.5,15.795,15.779,112.2964]
[1673320030260,37.0,15.794,15.779,112.2964]
[1673320031126,20.0,15.794,15.779,112.2964]
[1673320031322,20.0,15.798,15.781,20.0]
[1673320031533,20.0,15.798,15.782,47.54]
[1673320031731,20.0,15.798,15.783,17.0]
[1673320032060,20.0,15.799,15.783,17.0]
[1673320032482,17.0,15.798,15.783,17.0]
[1673320032700,20.0,15.797,15.783,17.0]
[1673320033215,20.0,15.797,15.781,47.54]
[1673320033532,20.0,15.797,15.782,17.0]
[1673320033725,20.0,15.796,15.782,17.0]
[1673320034148,37.0,15.795,15.78,47.54]
[1673320034355,37.0,15.795,15.779,112.2964]
[1673320034794,37.0,15.795,15.78,47.54]
[1673320035319,20.0,15.794,15.78,47.54]
[1673320035515,17.0,15.793,15.78,47.54]
[1673320035724,20.0,15.792,15.779,112.2964]
[1673320036352,20.0,15.792,15.78,47.54]
[1673320036562,20.0,15.796,15.78,47.54]
[1673320036799,20.0,15.796,15.781,37.0]
[1673320038028,20.0,15.798,15.782,47.54]
[1673320038251,20.0,15.799,15.782,47.54]
[1673320038775,20.0,15.806,15.783,18.74934455]
[1673320038979,20.0,15.807,15.784,67.53]
[1673320039195,20.0,15.807,15.784,185.7252]
[1673320039527,39.00061681,15.806,15.785,18.74934455]
[1673320039727,20.0,15.805,15.786,47.53]
[1673320039928,20.0,15.805,15.785,47.53]
[1673320039929,17.0,15.804,15.785,47.53]
[1673320040137,20.0,15.803,15.785,47.53]
[1673320040361,17.0,15.802,15.785,47.53]
[1673320040678,20.0,15.801,15.786,20.0]
[1673320040871,20.0,15.801,15.787,64.52]
[1673320041186,20.0,15.804,15.787,64.52]
[1673320041393,20.0,15.804,15.788,116.075]
[1673320041603,20.0,15.804,15.789,47.52]
[1673320041838,17.0,15.803,15.79,17.0]
[1673320042058,20.0,15.802,15.788,116.075]
[1673320042452,17.0,15.801,15.789,47.52]
[1673320042773,20.0,15.8,15.789,47.52]
[1673320043189,20.0,15.804,15.789,47.52]
[1673320043398,17.0,15.803,15.789,47.52]
[1673320043614,20.0,15.802,15.789,47.52]
[1673320044239,20.0,15.805,15.789,47.52]
[1673320046457,17.0,15.804,15.789,47.52]
[1673320046652,20.0,15.803,15.789,47.52]
[1673320047183,17.0,15.802,15.788,116.075]
[1673320047405,20.0,15.801,15.788,116.075]
[1673320047622,20.0,15.801,15.79,20.0]
[1673320047814,20.0,15.801,15.791,47.51]
[1673320048130,40.0,15.807,15.791,47.51]
[1673320048549,20.0,15.807,15.791,47.51]
[1673320049187,27.1,15.81,15.792,20.0]
[1673320049391,27.1,15.81,15.793,47.51]
[1673320050038,27.1,15.81,15.791,47.51]
[1673320050228,20.0,15.807,15.792,18.74934455]
[1673320050443,20.0,15.807,15.793,47.51]
[1673320050658,20.0,15.807,15.792,20.0]
[1673320050872,20.0,15.807,15.793,47.51]
[1673320051698,20.0,15.807,15.791,47.51]
[1673320051909,17.0,15.806,15.791,47.51]
[1673320052119,20.0,15.805,15.791,47.51]
[1673320052565,20.0,15.805,15.792,20.0]
[1673320052760,27.1,15.81,15.792,20.0]
[1673320052977,27.1,15.81,15.794,20.0]
[1673320053180,27.1,15.81,15.795,47.5]
[1673320053387,27.1,15.81,15.796,17.0]
[1673320054234,27.1,15.81,15.795,47.5]
[1673320054440,27.1,15.81,15.796,17.0]
[1673320057309,111.6435,15.824,15.8,27.35]
[1673320057616,20.0,15.823,15.802,20.0]
[1673320057834,47.42,15.822,15.803,64.48]
[1673320058025,47.42,15.822,15.804,20.0]
[1673320058458,47.42,15.823,15.805,47.47]
[1673320058992,47.42,15.823,15.806,20.0]
[1673320060142,111.6435,15.824,15.808,20.0]
[1673320061277,111.6435,15.824,15.807,47.46]
[1673320061493,67.42,15.823,15.807,47.46]
[1673320061709,47.42,15.823,15.808,20.0]
[1673320061930,159.0535,15.824,15.808,20.0]
[1673320062129,111.6435,15.824,15.808,20.0]
[1673320062968,20.0,15.823,15.808,20.0]
[1673320063814,20.0,15.823,15.806,67.47]
[1673320064026,67.42,15.823,15.806,67.47]
[1673320065287,20.0,15.823,15.806,67.47]
[1673320065617,111.6435,15.824,15.806,67.47]
[1673320066560,20.0,15.822,15.806,20.0]
[1673320066871,47.42,15.821,15.805,166.0773]
[1673320067059,20.0,15.82,15.805,118.6073]
[1673320067273,47.42,15.821,15.805,118.6073]
[1673320068138,20.0,15.822,15.806,20.0]
[1673320068338,20.0,15.822,15.807,47.46]
[1673320068656,20.0,15.822,15.806,67.47]
[1673320069060,20.0,15.822,15.807,17.0]
[1673320070335,67.42,15.823,15.807,17.0]
[1673320070549,20.0,15.823,15.808,47.46]
[1673320070959,20.0,15.823,15.807,47.46]
[1673320072229,111.6435,15.824,15.807,47.46]
[1673320072417,20.0,15.823,15.808,37.0]
[1673320072627,20.0,15.823,15.809,47.46]
[1673320073364,111.6435,15.824,15.81,20.0]
[1673320073573,111.6435,15.824,15.811,47.45]
[1673320073794,20.0,15.826,15.811,47.45]
[1673320073989,20.0,15.826,15.812,20.0]
[1673320074210,20.0,15.826,15.813,17.0]
[1673320074418,20.0,15.826,15.812,20.0]
[1673320074844,7.14e-05,15.819,15.812,20.0]
[1673320075049,7.14e-05,15.819,15.814,20.0]
[1673320075377,20.0,15.831,15.817,2.07751597]
[1673320076129,185.4,15.829,15.814,18.74934455]
[1673320076455,322.63,15.82,15.793,110.5756]
[1673320076638,2.07751597,15.817,15.794,20.0]
[1673320076853,2.07751597,15.817,15.78,54.92]
[1673320076854,232.84,15.816,15.781,47.54]
[1673320077170,136.58,15.81,15.781,178.1156]
[1673320077493,66.46061681,15.809,15.782,20.0]
[1673320077708,19.00061681,15.809,15.784,20.0]
[1673320077905,27.1,15.81,15.785,47.53]
[1673320077906,19.00061681,15.808,15.785,47.53]
[1673320078122,19.00061681,15.808,15.786,20.0]
[1673320078448,19.00061681,15.808,15.787,47.52]
[1673320078653,19.00061681,15.808,15.789,20.0]
[1673320078870,64.46,15.807,15.79,47.51]
[1673320079187,20.0,15.805,15.787,47.52]
[1673320079399,27.35,15.8,15.786,20.0]
[1673320079589,20.0,15.799,15.785,47.53]
[1673320079800,39.00061681,15.799,15.785,47.53]
[1673320080133,19.00061681,15.798,15.785,47.53]
[1673320080554,19.00061681,15.798,15.786,17.0]
[1673320080759,19.00061681,15.798,15.785,47.53]
[1673320080968,19.00061681,15.798,15.783,47.54]
[1673320081173,19.00061681,15.798,15.784,20.0]
[1673320081383,66.49061681,15.798,15.784,20.0]
[1673320081811,19.00061681,15.797,15.784,20.0]
[1673320082227,19.00061681,15.797,15.782,67.54]
[1673320082549,19.00061681,15.797,15.782,20.0]
[1673320084336,19.00061681,15.797,15.781,110.5756]
[1673320084337,20.0,15.795,15.781,110.5756]
[1673320084547,84.5,15.794,15.781,110.5756]
[1673320084762,86.50061681,15.794,15.781,110.5756]
[1673320084965,19.00061681,15.793,15.781,110.5756]
[1673320085176,20.0,15.792,15.781,110.5756]
[1673320085603,39.00061681,15.792,15.781,110.5756]
[1673320087995,39.00061681,15.792,15.778,20.0]
[1673320088402,17.0,15.791,15.778,20.0]
[1673320088725,47.49,15.797,15.778,20.0]
[1673320088726,19.00061681,15.795,15.778,20.0]
[1673320088920,19.00061681,15.795,15.78,20.0]
[1673320089131,19.00061681,15.795,15.781,67.54]
[1673320089352,19.00061681,15.795,15.782,20.0]
[1673320091675,19.00061681,15.795,15.781,67.54]
[1673320091987,37.0,15.794,15.779,47.55]
[1673320092195,84.5,15.794,15.778,20.0]
[1673320092391,19.00061681,15.793,15.778,20.0]
[1673320092721,20.0,15.792,15.779,17.0]
[1673320093143,19.00061681,15.791,15.779,17.0]
[1673320093350,20.0,15.79,15.779,17.0]
[1673320093754,39.00061681,15.79,15.779,17.0]
[1673320094708,39.00061681,15.79,15.776,20.0]
[1673320099132,20.0,15.79,15.776,20.0]
[1673320099347,20.0,15.792,15.778,20.0]
[1673320099655,19.00061681,15.796,15.78,20.0]
[1673320099862,20.0,15.795,15.781,64.54]
[1673320100183,20.0,15.795,15.781,17.0]
[1673320100814,47.49,15.799,15.781,17.0]
[1673320101032,19.00061681,15.796,15.783,20.0]
[1673320101451,47.49,15.799,15.784,17.0]
[1673320101657,47.49,15.799,15.784,128.2601]
[1673320101855,19.00061681,15.798,15.784,128.2601]
[1673320102397,17.0,15.797,15.784,128.2601]
[1673320102919,19.00061681,15.798,15.784,128.2601]
[1673320103125,19.00061681,15.798,15.785,20.0]
[1673320103534,17.0,15.797,15.785,20.0]
[1673320103963,36.00061681,15.797,15.785,20.0]
[1673320104387,36.00061681,15.797,15.783,20.0]
[1673320105441,143.6583,15.8,15.783,20.0]
[1673320105633,67.49,15.799,15.783,20.0]
[1673320108072,19.00061681,15.798,15.783,20.0]
[1673320108259,64.49,15.797,15.783,20.0]
[1673320108678,83.49061681,15.797,15.783,20.0]
[1673320109000,83.49061681,15.797,15.784,17.0]
[1673320110357,83.49061681,15.797,15.783,17.0]
[1673320110562,83.49061681,15.797,15.78,20.0]
[1673320110789,83.49061681,15.797,15.781,20.0]
[1673320110998,83.49061681,15.797,15.779,109.1737]
[1673320110999,20.0,15.795,15.779,109.1737]
[1673320111194,84.5,15.794,15.779,109.1737]
[1673320111407,103.50061681,15.794,15.779,109.1737]
[1673320111640,19.00061681,15.793,15.779,109.1737]
[1673320112043,20.0,15.792,15.779,109.1737]
[1673320112377,20.0,15.792,15.78,20.0]
[1673320112568,20.0,15.793,15.78,20.0]
[1673320112780,67.51,15.793,15.78,20.0]
[1673320113004,17.0,15.792,15.779,109.1737]
[1673320113341,20.0,15.791,15.779,109.1737]
[1673320114074,67.51,15.791,15.779,109.1737]
[1673320114395,20.0,15.791,15.779,109.1737]
[1673320116174,39.00061681,15.791,15.779,109.1737]
[1673320118173,44.35,15.79,15.775,47.56]
[1673320118490,44.35,15.79,15.762,25.7648714]
[1673320118491,86.52061681,15.789,15.772,47.57]
[1673320118697,17.0,15.788,15.769,177.9402]
[1673320118896,20.0,15.786,15.769,177.9402]
[1673320119227,84.53,15.785,15.769,130.3602]
[1673320119547,103.53061681,15.785,15.769,130.3602]
[1673320119758,19.00061681,15.784,15.769,130.3602]
[1673320120068,37.0,15.783,15.769,130.3602]
[1673320120278,84.54,15.783,15.77,17.0]
[1673320120471,56.00061681,15.783,15.77,17.0]
[1673320121748,56.00061681,15.783,15.769,130.3602]
[1673320121958,19.00061681,15.782,15.769,130.3602]
[1673320122173,20.0,15.781,15.769,130.3602]
[1673320122697,20.0,15.783,15.769,130.3602]
[1673320123112,39.00061681,15.783,15.77,17.0]
[1673320123316,39.00061681,15.783,15.771,20.0]
[1673320123517,116.9313,15.792,15.772,64.57]
[1673320123727,20.0,15.791,15.772,64.57]
[1673320123942,39.00061681,15.791,15.773,20.0]
[1673320124157,19.00061681,15.79,15.774,64.56]
[1673320124369,20.0,15.789,15.774,64.56]
[1673320125009,20.0,15.789,15.775,20.0]
[1673320126462,20.0,15.789,15.776,17.0]
[1673320129203,20.0,15.789,15.776,64.56]
[1673320129616,39.00061681,15.791,15.776,17.0]
[1673320129944,39.00061681,15.791,15.777,114.4925]
[1673320130142,39.00061681,15.791,15.778,17.0]
[1673320132684,39.00061681,15.791,15.777,114.4925]
[1673320132988,67.51,15.79,15.777,114.4925]
[1673320133200,20.0,15.789,15.777,114.4925]
[1673320133602,20.0,15.79,15.777,114.4925]
[1673320134564,20.0,15.79,15.778,17.0]
[1673320135183,20.0,15.791,15.778,17.0]
[1673320136970,20.0,15.791,15.778,64.55]
[1673320137724,20.0,15.79,15.778,64.55]
[1673320137923,20.0,15.791,15.779,20.0]
[1673320138140,20.0,15.795,15.78,64.54]
[1673320138335,20.0,15.798,15.78,64.54]
[1673320138545,67.49,15.797,15.78,64.54]
[1673320138864,20.0,15.795,15.78,64.54]
[1673320139075,20.0,15.796,15.78,64.54]
[1673320139401,20.0,15.795,15.78,17.0]
[1673320139803,67.5,15.795,15.779,17.0]
[1673320140131,20.0,15.794,15.779,17.0]
[1673320140458,20.0,15.793,15.779,17.0]
[1673320140764,20.0,15.792,15.779,17.0]
[1673320141378,20.0,15.791,15.778,47.55]
[1673320141589,20.0,15.789,15.777,114.4925]
[1673320141801,40.0,15.789,15.777,114.4925]
[1673320142242,20.0,15.789,15.777,114.4925]
[1673320142437,40.0,15.789,15.772,47.57]
[1673320142643,17.0,15.788,15.773,108.6614]
[1673320142854,64.52,15.788,15.773,108.6614]
[1673320143085,20.0,15.787,15.773,108.6614]
[1673320143405,17.0,15.788,15.773,108.6614]
[1673320143926,17.0,15.788,15.774,17.0]
[1673320144960,47.52,15.789,15.774,17.0]
[1673320146227,47.52,15.789,15.773,108.6614]
[1673320146438,17.0,15.788,15.773,108.6614]
[1673320147082,20.0,15.787,15.771,47.57]
[1673320147287,20.0,15.787,15.765,167.0127]
[1673320147288,17.0,15.786,15.765,167.0127]
[1673320147589,20.0,15.784,15.765,167.0127]
[1673320147793,64.54,15.783,15.765,119.4227]
[1673320148003,27.39,15.78,15.766,47.59]
[1673320148235,37.0,15.779,15.766,47.59]
[1673320148545,37.0,15.779,15.767,17.0]
[1673320148744,37.0,15.779,15.765,119.4227]
[1673320149812,20.0,15.779,15.765,119.4227]
[1673320150526,20.0,15.779,15.763,47.6]
[1673320150742,20.0,15.779,15.762,5.7648714]
[1673320150743,27.39,15.77,15.762,5.7648714]
[1673320150974,20.0,15.769,15.762,5.7648714]
[1673320151391,52.00617049,15.768,15.754,115.408]
[1673320151601,21.57529815,15.767,15.754,115.408]
[1673320151927,1.57529815,15.765,15.754,115.408]
[1673320152962,1.57529815,15.765,15.747,47.64]
[1673320152963,47.81434867,15.765,15.747,47.64]
[1673320153188,37.0,15.764,15.748,110.6692]
[1673320153502,37.0,15.764,15.746,20.0]
[1673320153503,20.0,15.759,15.741,47.66]
[1673320153696,20.0,15.759,15.73,136.96]
[1673320153697,67.61,15.758,15.738,47.67]
[1673320153901,84.61,15.758,15.738,47.67]
[1673320154116,84.61,15.758,15.734,47.68]
[1673320154558,20.0,15.757,15.734,47.68]
[1673320154750,84.62,15.756,15.734,47.68]
[1673320155600,20.0,15.755,15.735,20.0]
[1673320155807,67.62,15.754,15.736,47.68]
[1673320156133,27.33,15.75,15.734,47.68]
[1673320156349,20.0,15.749,15.734,47.68]
[1673320156875,47.61,15.758,15.738,47.67]
[1673320157059,27.26,15.76,15.74,27.39]
[1673320157268,67.61,15.759,15.741,47.66]
[1673320157920,67.61,15.759,15.742,17.0]
[1673320158134,67.61,15.759,15.743,47.66]
[1673320158443,67.61,15.759,15.744,17.0]
[1673320158641,47.61,15.759,15.744,17.0]
[1673320159067,27.26,15.76,15.743,64.66]
[1673320159383,20.0,15.759,15.743,181.8428]
[1673320159598,20.0,15.759,15.744,20.0]
[1673320159914,20.0,15.759,15.745,17.0]
[1673320161182,67.61,15.759,15.745,17.0]
[1673320161489,20.0,15.758,15.743,117.1828]
[1673320161805,64.61,15.757,15.738,44.68799973]
[1673320161999,64.61,15.757,15.74,20.0]
[1673320162215,64.61,15.757,15.741,37.0]
[1673320162519,20.0,15.756,15.741,37.0]
[1673320162734,64.62,15.755,15.741,20.0]
[1673320162939,64.62,15.755,15.74,20.0]
[1673320164308,47.62,15.755,15.741,17.0]
[1673320164830,20.0,15.754,15.741,17.0]
[1673320165367,19.00061681,15.755,15.741,17.0]
[1673320165581,47.59,15.765,15.74,228.83799973]
[1673320165791,47.59,15.765,15.737,229.91421595]
[1673320165792,43.67655557,15.758,15.742,18.74934455]
[1673320166106,120.50194966,15.757,15.737,121.9666714]
[1673320166321,20.0,15.756,15.737,121.9666714]
[1673320166518,47.62,15.755,15.737,121.9666714]
[1673320166727,27.15,15.75,15.737,121.9666714]
[1673320166937,37.0,15.749,15.737,5.7648714]
[1673320167157,47.64,15.748,15.737,5.7648714]
[1673320167353,57.0,15.747,15.737,5.7648714]
[1673320167562,47.65,15.746,15.737,5.7648714]
[1673320167797,20.0,15.745,15.737,5.7648714]
[1673320167994,47.65,15.744,15.737,5.7648714]
[1673320168200,20.0,15.743,15.737,5.7648714]
[1673320168612,39.00061681,15.743,15.737,5.7648714]
[1673320170195,27.35,15.75,15.738,17.0]
[1673320170404,20.0,15.749,15.738,17.0]
[1673320170620,20.0,15.749,15.738,127.6359]
[1673320171154,19.00061681,15.752,15.738,127.6359]
[1673320171370,84.63,15.751,15.738,127.6359]
[1673320171568,20.0,15.75,15.738,127.6359]
[1673320171888,84.64,15.749,15.737,5.7648714]
[1673320172108,20.0,15.748,15.737,5.7648714]
[1673320172418,20.0,15.746,15.737,5.7648714]
[1673320172626,20.0,15.744,15.725,20.0]
[1673320172841,85.40311588,15.743,15.725,20.0]
[1673320173053,20.0,15.742,15.725,20.0]
[1673320173253,67.66,15.741,15.725,20.0]
[1673320174010,67.66,15.741,15.726,17.0]
[1673320174195,20.0,15.741,15.726,17.0]
[1673320174615,20.0,15.741,15.725,20.0]
[1673320174844,47.67,15.74,15.725,20.0]
[1673320175057,20.0,15.739,15.725,20.0]
[1673320175277,0.69595443,15.738,15.725,20.0]
[1673320175579,0.73188428,15.738,15.725,20.0]
[1673320175768,0.86967675,15.74,15.725,20.0]
[1673320176418,75.68967675,15.74,15.725,20.0]
[1673320176631,20.0,15.739,15.725,20.0]
[1673320177032,20.0,15.739,15.725,19.0]
[1673320177248,20.69656997,15.744,15.727,20.0]
[1673320177457,47.66,15.743,15.728,17.0]
[1673320177666,20.0,15.742,15.728,17.0]
[1673320177877,20.0,15.742,15.727,20.0]
[1673320178609,64.66,15.741,15.727,20.0]
[1673320178825,20.0,15.74,15.727,20.0]
[1673320179447,20.0,15.74,15.725,19.0]
[1673320179654,20.0,15.74,15.696,177.60740674]
[1673320179655,20.0,15.738,15.716,20.0]
[1673320179869,49.06540028,15.737,15.716,20.0]
[1673320180081,37.0,15.736,15.716,20.0]
[1673320180400,49.07540028,15.735,15.716,20.0]
[1673320180614,1.39540028,15.733,15.715,162.462]
[1673320180821,1.39540028,15.731,15.715,114.722]
[1673320181147,20.0,15.731,15.715,114.722]
[1673320181353,1.39540028,15.73,15.715,114.722]
[1673320181569,20.0,15.731,15.716,47.74]
[1673320181881,68.60536378,15.735,15.717,37.0]
[1673320182096,17.0,15.734,15.717,37.0]
[1673320182304,68.61536378,15.733,15.717,37.0]
[1673320182700,20.92536378,15.733,15.717,37.0]
[1673320183035,0.92536378,15.733,15.717,37.0]
[1673320183231,48.61536378,15.733,15.717,37.0]
[1673320183436,20.0,15.732,15.717,37.0]
[1673320183775,20.0,15.732,15.716,67.74]
[1673320184197,20.0,15.734,15.716,67.74]
[1673320184407,20.0,15.732,15.716,47.74]
[1673320184611,85.39117254,15.731,15.715,114.722]
[1673320184804,84.69,15.731,15.715,114.722]
[1673320185230,37.0,15.731,15.715,114.722]
[1673320185875,37.0,15.731,15.716,17.0]
[1673320187036,20.0,15.73,15.716,17.0]
[1673320187226,67.7,15.729,15.716,17.0]
[1673320187649,20.0,15.729,15.716,17.0]
[1673320187869,47.7,15.728,15.716,17.0]
[1673320188173,20.0,15.729,15.715,114.722]
[1673320188383,20.0,15.729,15.716,20.0]
[1673320188922,20.0,15.729,15.715,114.722]
[1673320189121,47.7,15.728,15.715,114.722]
[1673320189331,67.7,15.729,15.715,114.722]
[1673320190084,67.7,15.729,15.716,17.0]
[1673320190487,0.68673791,15.728,15.716,17.0]
[1673320191972,67.7,15.729,15.716,17.0]
[1673320193552,20.0,15.729,15.716,17.0]
[1673320193863,20.0,15.729,15.717,20.0]
[1673320194076,67.7,15.729,15.715,114.722]
[1673320194390,67.7,15.729,15.716,20.0]
[1673320194591,20.0,15.729,15.716,20.0]
[1673320195008,20.0,15.729,15.717,47.73]
[1673320195220,20.0,15.733,15.718,17.0]
[1673320195758,20.0,15.732,15.718,17.0]
[1673320195974,20.0,15.731,15.718,17.0]